bitfinex-derivatives/quotes_ETHF0:USTF0_20251216
["timestamp","ask_amount","ask_price","bid_price","bid_amount"]
[1765902899318,0.00324194,2940.1,2940.0,1.9735]
[1765902899520,0.00324194,2940.1,2940.0,0.4495]
[1765902899521,0.96544194,2940.1,2940.0,0.4495]
[1765902899816,0.00324194,2940.1,2940.0,1.9735]
[1765902900417,3.2078,2941.5,2941.1,1.524]
[1765902900715,3.2078,2941.5,2941.0,1.9735]
[1765902900716,0.17002,2941.4,2941.0,1.9735]
[1765902900913,3.2078,2941.8,2941.7,1.524]
[1765902901114,3.6889,2941.8,2941.7,0.7701]
[1765902901312,3.2078,2943.4,2942.6,0.16995]
[1765902901519,3.2078,2943.4,2942.6,2.25107831]
[1765902901520,0.00509641,2943.3,2942.6,2.25107831]
[1765902901821,0.4496,2943.0,2942.5,3.03805554]
[1765902902009,0.4496,2942.4,2942.3,5.653]
[1765902902216,0.4496,2943.0,2942.3,5.653]
[1765902902415,0.4496,2943.0,2942.4,4.33306133]
[1765902902616,0.4496,2943.0,2942.1,3.03805554]
[1765902902913,0.4496,2943.0,2942.1,4.46762799]
[1765902903115,0.4496,2942.4,2941.7,3.04056657]
[1765902903322,2.0066,2941.8,2941.7,0.00251103]
[1765902903818,0.4496,2941.8,2941.7,0.00251103]
[1765902904320,1.3638,2941.8,2941.7,0.00251103]
[1765902904726,0.4496,2942.4,2941.7,0.31821103]
[1765902904912,0.5562,2941.8,2941.7,0.00251103]
[1765902905817,2.3849,2941.8,2941.7,0.00251103]
[1765902906023,0.5562,2941.8,2941.7,0.15061103]
[1765902906530,0.5562,2941.8,2941.7,0.29811103]
[1765902906725,0.5562,2941.8,2941.7,3.50591103]
[1765902906916,0.4496,2942.4,2941.7,3.50591103]
[1765902907113,2.2783,2942.4,2942.3,3.2078]
[1765902907520,43.0783,2942.4,2942.3,3.2078]
[1765902908025,2.2783,2942.4,2942.3,3.2078]
[1765902908419,43.0783,2942.4,2942.3,3.2078]
[1765902909217,1.3638,2942.4,2942.3,3.2078]
[1765902909422,0.4496,2942.4,2942.3,3.4434]
[1765902909626,2.2783,2942.4,2942.3,3.2078]
[1765902910624,2.3849,2941.8,2941.7,0.00251103]
[1765902910829,2.3849,2941.8,2941.7,3.21031103]
[1765902911023,2.3849,2941.8,2941.7,0.00251103]
[1765902912331,0.4496,2942.4,2941.7,1.91651103]
[1765902912528,0.4496,2942.4,2941.7,5.12431103]
[1765902912825,40.8,2942.3,2941.8,0.5709]
[1765902913021,3.2078,2942.6,2941.8,0.5709]
[1765902913227,0.9142,2941.8,2941.7,3.21031103]
[1765902913432,1.8287,2941.8,2941.7,3.21031103]
[1765902913828,41.3562,2942.4,2941.7,4.13231103]
[1765902914130,1.8287,2941.8,2941.7,3.21031103]
[1765902914430,0.5562,2942.4,2941.7,4.13231103]
[1765902914628,40.8,2942.3,2941.7,4.13231103]
[1765902915030,0.9142,2941.8,2941.7,3.21031103]
[1765902915330,0.9142,2941.8,2941.7,4.13231103]
[1765902915720,0.9142,2941.8,2941.7,3.21031103]
[1765902915923,0.5562,2942.4,2941.7,4.13231103]
[1765902916119,0.5562,2942.4,2941.8,0.5709]
[1765902916329,0.5562,2942.5,2941.8,0.5709]
[1765902916530,0.5562,2942.5,2941.7,3.21031103]
[1765902917125,44.17775,2942.6,2941.7,3.21031103]
[1765902918229,1.8287,2942.1,2942.0,3.2078]
[1765902918434,0.5562,2942.5,2942.0,5.1218]
[1765902919028,0.9142,2942.1,2942.0,3.2078]
[1765902919230,0.9142,2942.1,2942.0,4.1298]
[1765902920135,1.8287,2942.1,2942.0,3.2078]
[1765902921525,0.5562,2942.5,2942.0,5.1218]
[1765902922532,1.8287,2942.1,2942.0,3.2078]
[1765902922939,0.5562,2942.5,2942.0,5.1218]
[1765902923231,1.8287,2942.1,2942.0,3.2078]
[1765902923637,0.9142,2942.1,2942.0,4.1298]
[1765902923829,1.8287,2942.1,2942.0,4.1298]
[1765902924235,1.8287,2942.1,2942.0,3.2078]
[1765902925041,0.72616,2942.5,2942.0,5.1218]
[1765902925341,0.72616,2942.5,2942.0,5.6927]
[1765902926034,1.8287,2942.1,2942.0,3.2078]
[1765902926227,0.9142,2942.1,2942.0,4.1298]
[1765902926431,0.9142,2942.1,2942.0,5.1218]
[1765902926831,0.5562,2942.5,2942.0,5.6927]
[1765902927339,40.8,2942.6,2942.0,5.6927]
[1765902928041,0.16994,2942.7,2942.0,5.6927]
[1765902928244,0.9142,2942.1,2942.0,5.1218]
[1765902928830,1.8287,2942.1,2942.0,3.2078]
[1765902929236,1.8287,2942.1,2941.7,0.00251103]
[1765902929237,0.9142,2941.8,2941.7,0.92451103]
[1765902929531,1.8287,2941.8,2941.7,0.00251103]
[1765902929939,1.9987,2941.8,2941.7,0.00251103]
[1765902933043,1.8287,2941.1,2941.0,3.2078]
[1765902933248,0.17002,2941.4,2941.0,5.1218]
[1765902933448,0.9142,2941.1,2941.0,4.1298]
[1765902933747,0.17002,2941.4,2941.0,4.1298]
[1765902933748,0.17002,2941.4,2941.0,5.1218]
[1765902933948,0.17374965,2941.4,2941.0,5.12433589]
[1765902934546,1.0434,2941.1,2941.0,5.12433589]
[1765902934742,0.00372965,2941.4,2941.3,2.035]
[1765902934941,2.07392965,2941.4,2941.3,3.2078]
[1765902935237,1.04352965,2941.4,2941.3,4.2607]
[1765902935443,0.00372965,2941.4,2941.3,5.2428]
[1765902936452,2.07392965,2941.4,2941.3,3.2078]
[1765902936749,1.0398,2941.1,2941.0,3.21033589]
[1765902936950,0.00372965,2941.4,2941.0,5.83603589]
[1765902937346,1.04352965,2941.4,2941.3,1.0529]
[1765902937740,0.00372965,2941.4,2941.3,5.2428]
[1765902937944,0.00509641,2941.5,2941.4,2.035]
[1765902938157,0.00509641,2941.5,2941.4,5.08261363]
[1765902938454,0.00509641,2941.5,2941.4,2.035]
[1765902938646,0.00509641,2941.5,2941.4,5.08279381]
[1765902938844,0.00752539,2941.5,2941.4,5.08279381]
[1765902939644,0.00752539,2941.5,2941.4,2.035]
[1765902940655,0.00752539,2941.5,2941.4,5.08339763]
[1765902940847,3.2078,2942.4,2941.5,0.5907]
[1765902941157,2.0702,2942.4,2942.3,1.0529]
[1765902941454,2.0702,2942.0,2941.9,4.2607]
[1765902942057,2.0702,2941.8,2941.7,1.05799641]
[1765902942352,2.0702,2941.8,2941.7,0.00509641]
[1765902943854,2.2402,2941.8,2941.7,0.00509641]
[1765902945151,5.448,2941.8,2941.7,0.00509641]
[1765902946146,2.0702,2941.2,2941.1,3.2078]
[1765902946352,2.0702,2941.2,2941.0,0.00253589]
[1765902946353,2.0702,2941.1,2941.0,0.00253589]
[1765902946557,2.24024,2941.1,2941.0,3.589e-05]
[1765902946861,43.04024,2941.1,2941.0,3.589e-05]
[1765902948557,2.0702,2940.3,2940.2,3.2078]
[1765902949557,2.0702,2940.3,2940.2,3.21064832]
[1765902950454,2.0702,2940.3,2940.2,0.00284832]
[1765902950663,2.0702,2939.7,2939.6,3.2078]
[1765902950849,2.0702,2939.7,2938.5,3.7985]
[1765902950850,3.2078,2939.7,2938.5,3.7985]
[1765902951053,0.17014,2939.4,2938.5,3.7985]
[1765902951360,40.8,2939.3,2938.5,3.7985]
[1765902951562,3.2078,2939.2,2938.5,3.7985]
[1765902951855,3.21088156,2939.2,2939.0,0.59503414]
[1765902952063,0.00308156,2939.2,2939.0,0.59503414]
[1765902952361,3.21088156,2939.2,2939.0,0.59503414]
[1765902953853,3.21088156,2939.2,2939.1,2.035]
[1765902955266,0.1538,2939.1,2939.0,0.59503414]
[1765902955461,0.3076,2939.1,2939.0,0.59503414]
[1765902955959,3.2078,2939.5,2939.0,6.5907]
[1765902956151,0.5774,2939.5,2939.4,4.6658]
[1765902956357,2.6476,2939.5,2939.4,3.2078]
[1765902956555,2.0702,2939.2,2939.1,3.2078]
[1765902956958,2.07338165,2939.2,2939.1,3.21178242]
[1765902960267,0.00318165,2939.2,2939.1,5.24678242]
[1765902960863,1.04298165,2939.2,2939.1,4.26468242]
[1765902961064,2.07338165,2939.2,2939.1,3.21178242]
[1765902961462,2.07338165,2939.2,2937.7,0.17023]
[1765902961463,2.0702,2938.8,2938.7,3.2078]
[1765902961760,0.5774,2939.0,2937.5,2.2387]
[1765902961761,1.6172,2938.5,2938.4,4.2607]
[1765902961966,2.24037,2938.9,2938.4,3.2078]
[1765902962170,2.24037,2938.9,2938.7,3.2078]
[1765902962171,2.0702,2938.8,2938.7,3.2078]
[1765902962463,2.6476,2938.5,2938.4,3.2078]
[1765902962664,2.6476,2938.5,2938.4,3.21167248]
[1765902963264,0.5774,2938.5,2938.0,4.2607]
[1765902963464,1.0398,2938.1,2938.0,4.2607]
[1765902963665,2.0702,2938.1,2938.0,4.2607]
[1765902963867,2.0702,2938.1,2938.0,3.2078]
[1765902964261,2.0702,2938.1,2937.0,0.67727]
[1765902964262,2.8323,2937.8,2937.7,3.2078]
[1765902964662,1.4464,2937.8,2937.7,4.5946]
[1765902964863,0.8123,2938.0,2937.9,2.7921]
[1765902965161,3.6446,2938.0,2937.7,3.2078]
[1765902965356,2.8323,2937.8,2937.7,3.21179952]
[1765902965864,0.1702,2938.3,2937.9,2.7921]
[1765902966663,6.6175,2938.5,2937.7,3.21179952]
[1765902966862,3.4097,2938.5,2938.0,3.2078]
[1765902967665,0.8123,2938.0,2937.7,3.21179952]
[1765902967863,1.4464,2937.8,2937.7,3.21179952]
[1765902968065,2.8323,2937.8,2937.7,3.21179952]
[1765902968266,2.8323,2936.4,2936.3,1.25278222]
[1765902968572,1.4464,2935.1,2935.0,0.0008]
[1765902968762,1.4464,2935.1,2935.0,0.6259329]
[1765902968955,2.8323,2935.1,2935.0,0.6259329]
[1765902969158,2.8323,2934.6,2934.5,3.3197028]
[1765902969465,3.36483525,2934.6,2933.9,3.2078]
[1765902969668,3.6446,2934.0,2933.5,0.6259329]
[1765902970060,0.53266844,2933.9,2932.5,0.8522]
[1765902970267,0.53268644,2933.8,2933.5,0.6259329]
[1765902970472,0.53268644,2933.7,2933.5,0.00392669]
[1765902970670,0.98275,2934.0,2933.5,0.00392669]
[1765902970869,0.53274072,2933.9,2933.5,0.00392669]
[1765902971068,0.53274072,2933.8,2933.5,0.00392669]
[1765902971280,3.06170871,2933.7,2933.5,2.669e-05]
[1765902971468,0.17049,2933.3,2931.5,0.8522]
[1765902971667,0.70324072,2933.2,2931.6,0.6259329]
[1765902971871,0.70324072,2933.2,2929.8,3.38138799]
[1765902971872,0.98285,2932.3,2929.8,3.38138799]
[1765902972067,2.35849799,2932.1,2930.2,1.12346368]
[1765902972269,0.53274072,2932.0,2930.4,0.6259329]
[1765902972465,0.53274072,2932.0,2930.4,0.00349202]
[1765902972466,0.8123,2930.9,2930.4,0.00349202]
[1765902972667,0.53274072,2930.8,2930.4,0.00349202]
[1765902972869,0.53274072,2930.7,2930.5,0.6259329]
[1765902973067,0.81741448,2930.9,2930.5,0.6259329]
[1765902973262,0.00511448,2930.9,2930.5,0.6259329]
[1765902973478,0.5332791,2931.9,2930.5,0.6259329]
[1765902973670,40.8,2931.8,2930.6,4.4135495]
[1765902973876,16.106,2933.1,2931.0,0.17062]
[1765902974075,1.34530711,2933.0,2931.0,0.17062]
[1765902974275,40.8,2932.9,2931.1,4.47013018]
[1765902974478,0.00511448,2932.3,2931.7,0.00511448]
[1765902975070,0.00928321,2932.3,2931.7,0.00511448]
[1765902976179,0.17043,2934.3,2932.0,0.7329]
[1765902976381,16.109,2934.1,2932.0,0.7329]
[1765902976780,40.8,2933.6,2932.0,0.7329]
[1765902976977,40.8,2933.6,2932.1,4.3895734]
[1765902977182,3.2078,2933.0,2932.3,3.2078]
[1765902977774,0.00511448,2933.1,2931.7,0.00511448]
[1765902977775,3.2078,2932.7,2931.9,3.2078]
[1765902977974,3.2078,2932.0,2931.7,0.00511448]
[1765902978184,2.88256117,2932.0,2931.8,0.6259329]
[1765902978381,3.2078,2932.3,2931.8,4.98683517]
[1765902978688,44.0078,2933.0,2932.2,3.2078]
[1765902979184,3.2078,2932.7,2932.2,3.2078]
[1765902979380,3.2078,2932.4,2931.7,0.00511448]
[1765902979576,3.2078,2932.4,2932.1,0.6259329]
[1765902979774,3.2078,2932.4,2932.3,0.6259329]
[1765902979976,3.2078,2932.7,2932.3,0.6259329]
[1765902980171,3.2078,2932.7,2931.7,0.17569448]
[1765902980375,3.2078,2933.0,2932.3,1.4781329]
[1765902980584,3.2078,2933.0,2932.3,4.6859329]
[1765902981183,3.2078,2933.0,2932.4,4.42455011]
[1765902981384,0.00511448,2933.1,2932.7,3.2078]
[1765902981589,0.00511448,2933.1,2932.7,3.21110155]
[1765902981979,3.21291448,2933.1,2932.7,0.00330155]
[1765902982385,0.00511448,2933.1,2932.7,0.00330155]
[1765902982590,3.2078,2933.0,2932.7,0.00330155]
[1765902982794,4.0201,2933.0,2932.7,0.00330155]
[1765902982989,3.2078,2933.0,2932.8,0.6259329]
[1765902983293,0.00511448,2933.1,2932.8,0.6259329]
[1765902984985,3.2078,2933.7,2933.0,4.06]
[1765902985191,0.17041,2934.7,2933.4,3.2078]
[1765902985192,3.2078,2934.1,2933.4,3.2078]
[1765902985490,3.2078,2933.8,2933.1,2.35849799]
[1765902985791,3.2078,2934.1,2933.3,3.2078]
[1765902986098,1.49021719,2933.9,2933.3,0.00511448]
[1765902986394,1.49021719,2933.9,2933.4,3.2078]
[1765902986593,1.49021719,2933.9,2933.3,0.00511448]
[1765902987090,3.2078,2933.7,2933.3,0.00511448]
[1765902987293,1.49021719,2933.9,2933.3,0.00511448]
[1765902987893,1.49021719,2933.9,2933.4,3.2078]
[1765902989090,1.49021719,2933.9,2933.3,8.24511448]
[1765902989091,1.49021719,2933.9,2933.3,0.00511448]
[1765902990994,3.2078,2933.6,2933.3,0.00511448]
[1765902991502,4.69801719,2933.9,2933.3,0.00511448]
[1765902992190,1.49021719,2933.9,2933.3,0.00511448]
[1765902992391,1.49021719,2933.9,2933.5,3.2078]
[1765902993396,1.17442961,2933.9,2933.8,3.2078]
[1765902994192,1.17442961,2933.9,2933.8,9.2078]
[1765902994391,3.2078,2934.5,2933.8,9.2086]
[1765902994596,3.2078,2934.5,2933.8,12.95706]
[1765902995498,0.00511448,2934.4,2933.8,0.0008]
[1765902995707,0.00511448,2934.4,2934.3,5.50264099]
[1765902995994,0.00511448,2934.4,2934.3,2.09044099]
[1765902996200,0.00511448,2934.4,2934.3,3.73924099]
[1765902996398,0.00511448,2934.4,2934.3,5.50264099]
[1765902996699,0.00511448,2934.4,2934.3,3.4122]
[1765902996900,0.00511448,2934.4,2934.1,3.2078]
[1765902997095,0.00511448,2934.4,2933.8,2.09044099]
[1765902997290,0.00511448,2934.4,2934.3,1.6488]
[1765902997699,0.53762813,2934.4,2934.0,3.2078]
[1765902997895,0.00511448,2934.4,2934.0,3.2078]
[1765902998295,3.2078,2934.2,2933.7,5.28546]
[1765902998595,0.00511448,2934.4,2933.7,5.115]
[1765902998791,3.2078,2934.2,2933.7,5.115]
[1765902999191,3.2078,2934.2,2933.4,1.024]
[1765902999405,0.53256183,2934.1,2933.3,21.59814881]
[1765902999600,3.2078,2934.2,2933.5,4.52724276]
[1765902999800,3.2078,2934.2,2933.3,21.59814881]
[1765902999801,3.2078,2933.9,2933.4,4.52724276]
[1765903000104,0.5326427,2933.8,2933.3,3.21291448]
[1765903000295,3.2078,2933.9,2933.3,3.21291448]
[1765903000496,3.2078,2933.7,2933.3,0.00511448]
[1765903000699,6.6174,2933.7,2933.6,0.6259329]
[1765903000896,1.7437,2933.4,2933.3,0.00511448]
[1765903001101,8.13253121,2933.4,2933.3,0.00511448]
[1765903001305,8.13253121,2933.4,2933.3,0.63104738]
[1765903001498,4.92473121,2933.4,2933.3,0.63104738]
[1765903001696,3.2078,2933.7,2933.3,2.27984738]
[1765903001899,4.83732954,2933.6,2933.5,0.6259329]
[1765903002400,4.392,2933.4,2933.3,0.00511448]
[1765903002794,3.2078,2933.7,2933.3,4.04324738]
[1765903003102,3.2078,2933.7,2933.3,2.27984738]
[1765903003301,4.392,2933.4,2933.3,0.00511448]
[1765903003604,5.28938347,2933.4,2933.3,0.63104738]
[1765903003998,8.49718347,2933.4,2933.3,0.63104738]
[1765903004599,4.10518347,2933.4,2933.3,2.27984738]
[1765903005199,0.89738347,2933.4,2933.3,2.27984738]
[1765903005999,4.1902,2934.0,2933.3,4.04324738]
[1765903006199,0.89859292,2933.9,2933.8,3.4122]
[1765903006607,3.2078,2934.3,2933.8,3.4122]
[1765903006804,0.8987761,2934.2,2934.1,3.4122]
[1765903006997,0.00511448,2934.4,2934.3,3.4122]
[1765903007203,0.90397178,2934.4,2934.3,3.4122]
[1765903007407,0.00511448,2934.4,2934.3,3.4122]
[1765903007705,1.448e-05,2934.4,2934.3,3.4122]
[1765903007907,1.448e-05,2934.4,2934.3,13.80225051]
[1765903008100,1.448e-05,2934.4,2934.3,16.06342484]
[1765903008703,3.2078,2935.2,2935.1,1.6488]
[1765903008903,3.2078,2935.7,2935.1,1.6488]
[1765903009203,0.89953082,2935.6,2935.1,0.6259329]
[1765903009402,0.89953082,2935.5,2935.0,3.2078]
[1765903009603,0.89953082,2935.5,2935.0,0.00806233]
[1765903009604,3.4096,2935.1,2935.0,0.00806233]
[1765903009803,4.30913082,2935.1,2935.0,0.00806233]
[1765903010008,4.30913082,2935.1,2935.0,0.63399523]
[1765903012009,2.64323082,2935.1,2935.0,0.63399523]
[1765903012204,4.30913082,2935.1,2935.0,0.63399523]
[1765903012409,0.89953082,2935.1,2935.0,2.28279523]
[1765903012606,0.00758642,2935.5,2935.0,4.04619523]
[1765903012807,0.89812743,2935.4,2935.0,4.04619523]
[1765903013010,0.89812743,2935.3,2935.0,4.04619523]
[1765903013206,3.4096,2935.1,2935.0,0.00806233]
[1765903013408,4.30772743,2935.1,2935.0,0.00806233]
[1765903013613,2.64182743,2935.1,2935.0,0.63399523]
[1765903013812,0.9824,2935.2,2935.0,0.63399523]
[1765903014014,0.89755667,2935.1,2935.0,0.63399523]
[1765903014218,4.30723314,2935.1,2935.0,0.63399523]
[1765903014719,4.1902,2935.2,2935.0,0.63399523]
[1765903014912,1.7437,2935.1,2935.0,0.63399523]
[1765903015210,0.9824,2935.2,2935.0,0.63399523]
[1765903015418,3.21538642,2935.5,2935.1,1.6488]
[1765903015613,0.89447009,2935.4,2935.1,1.6488]
[1765903015920,0.8942188,2935.3,2935.1,1.6488]
[1765903016219,0.8942188,2935.3,2935.0,0.63399523]
[1765903016220,3.4096,2935.1,2935.0,0.63399523]
[1765903017120,3.21538642,2935.5,2935.4,1.6488]
[1765903017326,3.4096,2935.1,2935.0,0.63399523]
[1765903017916,3.21538642,2935.5,2935.1,1.6488]
[1765903018720,3.4096,2935.1,2935.0,0.63399523]
[1765903021423,1.7437,2934.2,2934.1,3.2078]
[1765903021725,1.7437,2934.2,2933.4,2.09074433]
[1765903021726,4.9515,2934.2,2933.4,2.09074433]
[1765903022025,4.392,2934.0,2933.9,0.6259329]
[1765903022317,3.2078,2934.2,2933.9,0.6259329]
[1765903022318,3.2078,2934.2,2933.9,2.2747329]
[1765903022518,3.2078,2934.2,2933.9,2.27787955]
[1765903022727,44.0078,2934.5,2933.9,2.27787955]
[1765903022919,44.0078,2934.5,2933.9,5.48567955]
[1765903023124,3.2078,2934.8,2934.7,3.4122]
[1765903023323,3.21538642,2935.5,2935.0,3.4122]
[1765903023524,1.7437,2934.8,2934.7,3.2078]
[1765903023725,0.9824,2935.2,2935.1,1.5282]
[1765903024026,3.2078,2935.3,2934.7,3.2078]
[1765903024323,0.9367,2935.2,2934.7,3.2078]
[1765903025816,3.2078,2935.0,2934.4,0.17042]
[1765903026016,3.2078,2934.6,2934.0,2.85904433]
[1765903026222,3.2078,2934.3,2933.7,0.17046]
[1765903026421,4.1445,2934.6,2934.5,1.5282]
[1765903026625,4.1445,2934.6,2934.5,3.176]
[1765903026626,3.2078,2934.6,2934.5,3.176]
[1765903026826,3.2078,2934.9,2934.5,3.176]
[1765903027124,3.2078,2934.9,2934.1,3.2078]
[1765903028527,3.2078,2934.9,2934.8,1.5282]
[1765903028722,1.5576,2934.5,2934.4,3.2078]
[1765903028924,4.1445,2935.2,2934.4,3.2078]
[1765903029726,0.9367,2934.6,2934.1,3.2078]
[1765903030825,1.5576,2934.6,2934.5,1.5282]
[1765903031032,3.2078,2935.0,2934.5,1.5282]
[1765903032235,3.2078,2935.0,2934.9,1.5282]
[1765903032438,3.2078,2935.0,2934.9,3.176]
[1765903032933,4.7654,2935.0,2934.4,3.2078]
[1765903034028,3.2078,2935.4,2935.1,1.5282]
[1765903034233,2.4943,2935.2,2934.5,4.33857995]
[1765903034429,3.2078,2935.0,2934.4,0.17042]
[1765903034636,3.2078,2935.0,2934.2,3.2078]
[1765903035432,0.9367,2934.6,2934.2,3.2078]
[1765903035629,1.5576,2934.3,2934.2,3.2078]
[1765903036131,3.2066,2934.3,2933.9,0.62907955]
[1765903036632,3.2066,2934.3,2933.9,3.83687955]
[1765903036832,1.5576,2934.3,2933.9,3.83687955]
[1765903037835,0.9367,2934.6,2934.2,1.5282]
[1765903038542,3.2078,2934.7,2934.6,3.176]
[1765903039140,3.2078,2934.7,2934.2,3.2078]
[1765903039141,4.7654,2934.7,2934.2,3.2078]
[1765903039441,4.7654,2934.7,2933.9,8.0901573]
[1765903039941,6.4144,2934.7,2934.6,0.6259329]
[1765903040438,4.7654,2935.1,2935.0,1.5282]
[1765903040741,3.2078,2935.1,2935.0,1.5282]
[1765903041342,0.9367,2935.0,2934.6,0.6259329]
[1765903042345,3.2078,2935.1,2935.0,1.5282]
[1765903042549,0.9367,2935.0,2934.6,0.6259329]
[1765903043535,3.2066,2934.7,2934.6,0.6259329]
[1765903044641,3.2066,2934.7,2934.6,0.28034399]
[1765903044939,3.2066,2934.7,2934.6,0.27649544]
[1765903045146,3.2066,2934.7,2933.9,0.00314665]
[1765903045344,1.5576,2934.0,2933.9,0.00314665]
[1765903045546,4.1433,2934.0,2933.9,0.00314665]
[1765903046247,2.4943,2934.0,2933.9,0.00314665]
[1765903046941,44.0078,2934.3,2933.9,1.53134665]
[1765903047240,1.5576,2934.0,2933.9,1.53134665]
[1765903047442,44.0078,2934.3,2933.9,3.17914665]
[1765903047751,44.0078,2934.3,2933.9,1.53134665]
[1765903047934,40.8,2934.3,2934.2,1.5282]
[1765903048546,0.9367,2934.5,2933.9,0.00314665]
[1765903049039,3.2078,2934.9,2934.5,1.5282]
[1765903049245,3.2078,2934.9,2934.2,3.2078]
[1765903049246,3.2078,2934.9,2934.8,3.176]
[1765903049643,0.00758642,2935.5,2935.4,1.5282]
[1765903049835,0.00758642,2935.5,2935.4,3.176]
[1765903050038,0.00758642,2935.5,2935.4,1.5282]
[1765903050439,3.2066,2935.4,2935.3,3.2078]
[1765903050641,3.2066,2934.8,2934.7,4.25327775]
[1765903050840,0.9367,2935.0,2934.5,4.736]
[1765903051139,1.5576,2934.6,2934.5,3.2078]
[1765903051344,0.9367,2935.0,2934.5,4.736]
[1765903051543,1.5576,2934.6,2934.2,7.46107775]
[1765903051940,1.5576,2934.6,2934.2,3.2078]
[1765903052139,0.9367,2935.0,2934.2,3.2078]
[1765903052140,0.9367,2934.5,2934.2,3.2078]
[1765903052540,0.9367,2935.0,2934.4,3.176]
[1765903052843,3.2066,2934.6,2934.5,3.2078]
[1765903054049,0.9367,2935.0,2934.5,4.736]
[1765903055148,3.2078,2935.4,2934.9,1.6948]
[1765903055339,1.5973,2935.0,2934.8,3.2078]
[1765903055850,1.5973,2935.0,2934.9,1.6468]
[1765903056250,3.2078,2935.4,2934.9,1.6468]
[1765903056644,3.2078,2935.4,2935.3,1.6468]
[1765903057049,6.4383,2935.4,2934.8,3.2078]
[1765903057249,4.8051,2935.4,2934.8,3.2078]
[1765903057548,0.00758642,2935.5,2935.4,3.2136]
[1765903058452,0.00758642,2935.5,2935.4,6.4214]
[1765903058648,1.60488642,2935.5,2935.4,4.8546]
[1765903059749,0.00758642,2935.5,2935.4,6.4214]
[1765903059952,0.00758642,2935.5,2935.4,4.8546]
[1765903060147,0.00758642,2935.5,2935.4,6.4214]
[1765903062155,0.9367,2936.0,2935.4,6.4214]
[1765903063055,0.9367,2936.0,2935.9,1.6468]
[1765903063254,0.00332461,2936.0,2935.9,3.2136]
[1765903063450,3.2305,2935.8,2935.7,3.21291448]
[1765903064155,1.5973,2935.8,2935.7,4.85971448]
[1765903064345,1.03032461,2936.0,2935.7,6.42651448]
[1765903064551,0.00332461,2936.0,2935.9,3.2136]
[1765903065861,3.2078,2936.6,2936.5,3.2136]
[1765903066157,4.2348,2937.0,2936.6,3.2136]
[1765903066855,4.23916178,2937.0,2936.6,3.21615475]
[1765903067058,3.21216178,2937.0,2936.9,3.2136]
[1765903067264,0.00436178,2937.0,2936.9,3.2136]
[1765903069257,4.26186178,2937.0,2936.7,3.2078]
[1765903069759,2.62866178,2937.0,2936.9,1.6468]
[1765903070259,3.2305,2936.7,2936.6,0.00255475]
[1765903071355,1.5973,2936.7,2936.6,1.64935475]
[1765903071555,3.2305,2936.7,2936.6,0.00255475]
[1765903071962,6.4383,2936.7,2936.6,0.00255475]
[1765903073163,3.2305,2936.7,2936.6,0.00255475]
[1765903073364,4.23916178,2937.0,2936.6,3.21615475]
[1765903073556,3.21216178,2937.0,2936.9,3.2136]
[1765903074561,0.00436178,2937.0,2936.9,3.2136]
[1765903075756,4.8051,2937.3,2937.2,1.6468]
[1765903075957,4.8051,2937.3,2936.6,0.17285475]
[1765903076156,4.8051,2937.3,2936.7,4.51500245]
[1765903076359,4.8051,2937.3,2937.2,1.6468]
[1765903076663,4.80750692,2937.3,2937.2,1.6468]
[1765903077363,3.21020692,2937.3,2937.2,3.2136]
[1765903078767,0.00240692,2937.3,2937.2,6.4214]
[1765903079466,1e-08,2937.3,2937.2,6.4214]
[1765903080263,1e-08,2937.3,2937.2,10.78094676]
[1765903080462,1e-08,2937.3,2937.2,16.78094676]
[1765903080670,1e-08,2937.3,2937.2,10.78094676]
[1765903080864,1.59730001,2937.3,2937.2,1.6468]
[1765903081164,1e-08,2937.3,2937.2,7.7166485]
[1765903081367,3.2078,2938.3,2938.2,3.2136]
[1765903081565,1.027,2939.5,2938.2,3.2078]
[1765903081765,1.027,2939.5,2938.8,3.2078]
[1765903082169,3.2305,2938.9,2938.8,3.2078]
[1765903082362,3.23451631,2938.9,2938.8,0.00277801]
[1765903082973,1.5973,2938.2,2938.1,3.2078]
[1765903083170,1.027,2938.5,2938.1,6.4214]
[1765903083362,0.00401631,2938.9,2938.4,6.4214]
[1765903083966,0.00401631,2938.9,2938.4,6.42511225]
[1765903084169,0.00401631,2938.9,2938.8,1.6468]
[1765903084667,0.00401631,2938.9,2938.8,3.2033]
[1765903084866,0.00401631,2938.9,2938.7,3.2078]
[1765903084867,1.4863,2938.8,2938.7,3.2078]
[1765903085270,0.00401631,2938.9,2938.8,2.9786]
[1765903085769,0.00401631,2938.9,2938.7,3.2078]
[1765903085770,1.4863,2938.8,2938.7,4.6299]
[1765903086069,0.00401631,2938.9,2938.7,4.6299]
[1765903086465,0.00401631,2938.9,2938.8,1.4221]
[1765903086660,0.00401631,2938.9,2938.8,2.9786]
[1765903087261,0.00401631,2938.9,2938.7,3.2078]
[1765903087466,2.9126,2938.8,2938.7,3.2078]
[1765903087666,1.4863,2938.8,2938.7,3.2078]
[1765903088173,1.4863,2938.5,2938.4,3.21151225]
[1765903088471,0.00401631,2938.9,2938.4,4.63361225]
[1765903088671,1.4863,2938.8,2938.7,3.2078]
[1765903089076,2.9126,2938.8,2938.7,3.2078]
[1765903089462,2.9126,2938.5,2938.4,0.00371225]
[1765903089870,2.9126,2938.5,2938.0,0.00510507]
[1765903089871,2.9126,2938.1,2938.0,0.00510507]
[1765903090279,12.1204,2938.1,2938.0,5.07e-06]
[1765903090475,52.9204,2938.1,2938.0,5.07e-06]
[1765903090671,1.4863,2937.2,2937.1,3.2078]
[1765903090876,2.9126,2937.2,2936.6,3.2078]
[1765903091084,2.9126,2937.2,2937.1,0.00374071]
[1765903091570,2.9126,2937.2,2935.9,2.53521146]
[1765903091571,1.4863,2936.4,2936.3,3.2078]
[1765903091771,1.4863,2936.4,2936.1,0.00510507]
[1765903091966,42.2863,2936.4,2936.2,3.2078]
[1765903092269,1.4863,2936.2,2936.1,0.00510507]
[1765903092475,2.91574015,2936.2,2936.1,0.00907151]
[1765903092673,1.48944015,2936.2,2936.1,0.00907151]
[1765903093270,0.00314015,2936.2,2936.1,2.98767151]